bitfinex-derivatives/quotes_ETHF0:USTF0_20210407
["timestamp","ask_amount","ask_price","bid_price","bid_amount"]
[1617836455570,2.90695,2005.2,2005.0,2.90695]
[1617836459971,2.90695,2005.2,2005.0,72.75645]
[1617836460471,2.90695,2005.2,2005.0,2.90695]
[1617836461174,5.73885,2005.2,2005.0,2.90695]
[1617836461572,5.73885,2005.2,2004.4,0.02]
[1617836461874,80.8683,2003.7,2003.3,15.9512]
[1617836462076,83.6367,2003.7,2003.6,2.90695]
[1617836462274,2.7684,2003.7,2003.6,2.90695]
[1617836463676,2.90695,2004.5,2003.6,2.90695]
[1617836464076,69.7578,2004.3,2004.0,59.60895]
[1617836464877,4.8319,2005.2,2004.0,2.90695]
[1617836465077,95.4081,2005.1,2004.0,2.90695]
[1617836465279,62.3692,2004.3,2004.0,2.90695]
[1617836466078,65.27615,2004.3,2004.0,2.90695]
[1617836472391,2.90695,2004.3,2004.0,2.90695]
[1617836473993,70.7488,2004.2,2004.0,2.90695]
[1617836476795,2.90695,2004.3,2004.0,2.90695]
[1617836480300,2.90695,2004.3,2003.4,0.02]
[1617836480500,5.25855,2004.3,2003.4,0.02]
[1617836481215,2.0,2004.2,2003.4,0.02]
[1617836481602,35.25855,2004.3,2003.4,0.02]
[1617836481905,30.0,2004.2,2003.4,0.02]
[1617836482302,2.90695,2003.5,2003.4,0.02]
[1617836482502,5.82375,2003.5,2003.4,0.02]
[1617836483306,5.82375,2003.5,2003.2,2.90695]
[1617836483605,56.4598,2003.4,2003.2,2.90695]
[1617836485406,2.90695,2003.5,2003.4,72.6842]
[1617836485706,2.0,2004.7,2003.2,5.42165]
[1617836485906,0.9904,2005.0,2003.2,5.42165]
[1617836486206,76.4515,2004.3,2003.8,75.7027]
[1617836486406,76.4515,2004.3,2003.9,2.90695]
[1617836487913,32.0,2004.9,2003.9,2.90695]
[1617836488410,2.90695,2004.0,2003.9,2.90695]
[1617836489110,65.4644,2003.6,2003.2,65.1791]
[1617836489312,2.90695,2004.0,2003.2,2.5147]
[1617836489513,56.9447,2003.4,2003.1,63.3226]
[1617836490212,2.90695,2004.0,2003.0,0.02]
[1617836490413,56.9021,2004.4,2003.7,63.2752]
[1617836490615,12.9325,2006.5,2003.6,4.83705]
[1617836490813,63.6553,2004.7,2004.1,60.3266]
[1617836491013,63.6553,2004.7,2004.1,62.8331]
[1617836492315,63.6553,2004.7,2004.2,2.90695]
[1617836492715,63.6553,2004.7,2004.1,62.8331]
[1617836494316,2.90695,2004.2,2004.1,62.8331]
[1617836494517,2.90695,2004.2,2004.0,2.90695]
[1617836494719,56.8108,2004.1,2004.0,2.90695]
[1617836500730,59.8418,2004.1,2004.0,2.90695]
[1617836502927,56.8108,2004.1,2004.0,2.90695]
[1617836514643,2.90695,2004.2,2004.0,2.90695]
[1617836515443,2.90695,2004.2,2004.0,77.42135]
[1617836515844,60.887,2004.4,2004.0,77.42135]
[1617836516046,2.571,2005.7,2004.0,2.90695]
[1617836516348,59.0576,2005.1,2004.6,66.7961]
[1617836516551,59.0576,2005.1,2005.0,2.90695]
[1617836516746,2.571,2005.7,2005.0,2.90695]
[1617836517046,2.571,2005.7,2005.1,82.364]
[1617836518549,2.571,2005.7,2005.6,2.90695]
[1617836518748,2.571,2005.7,2005.6,5.73825]
[1617836520550,2.90695,2005.8,2005.6,5.73825]
[1617836528965,2.90695,2005.8,2005.6,2.90695]
[1617836530469,2.90695,2005.8,2005.6,5.47465]
[1617836532970,7.669,2006.6,2005.6,5.47465]
[1617836533375,71.1594,2006.2,2005.7,58.3905]
[1617836534676,71.1594,2006.2,2006.0,2.90695]
[1617836536179,7.669,2006.6,2006.0,2.90695]
[1617836536381,7.669,2006.6,2006.5,71.0113]
[1617836536580,10.57595,2006.6,2006.5,2.7406]
[1617836537679,2.90695,2006.6,2006.5,2.7406]
[1617836538379,79.9839,2007.4,2006.5,2.7406]
[1617836538679,79.9839,2007.4,2007.0,63.89095]
[1617836540881,2.90695,2007.1,2007.0,5.58295]
[1617836542184,2.90695,2007.1,2007.0,2.90695]
[1617836542384,5.56075,2007.1,2007.0,2.90695]
[1617836542787,5.56075,2007.1,2005.8,80.5818]
[1617836542987,59.7142,2006.2,2005.8,80.5818]
[1617836543185,62.4639,2006.2,2005.8,80.5818]
[1617836544787,62.4639,2006.2,2006.1,2.90695]
[1617836546792,2.7497,2006.2,2006.1,2.90695]
[1617836547989,2.7497,2006.2,2006.1,84.75245]
[1617836548289,2.90695,2006.5,2006.1,84.75245]
[1617836548789,2.90695,2006.5,2006.4,2.90695]
[1617836551999,2.571,2007.4,2006.4,5.39965]
[1617836552194,74.2677,2007.4,2007.0,78.9721]
[1617836552695,2.90695,2007.1,2007.0,81.87905]
[1617836554099,2.90695,2007.1,2007.0,4.94515]
[1617836554300,2.90695,2007.1,2007.0,2.90695]
[1617836556906,68.57005,2007.1,2007.0,2.90695]
[1617836557603,2.90695,2007.1,2007.0,2.90695]
[1617836557804,67.9665,2007.0,2005.2,67.6656]
[1617836558004,67.9665,2007.0,2005.2,65.6656]
[1617836558506,67.9665,2007.0,2005.3,6.12]
[1617836558706,30.0,2006.9,2005.5,2.90695]
[1617836558906,77.6912,2005.6,2005.5,2.90695]
[1617836559107,80.5254,2005.6,2005.5,2.90695]
[1617836559806,2.8342,2005.6,2005.5,2.90695]
[1617836560306,2.8342,2005.6,2005.5,72.34235]
[1617836560506,81.9528,2006.1,2005.5,72.34235]
[1617836560706,81.9528,2006.1,2006.0,2.90695]
[1617836562913,84.85975,2006.1,2006.0,2.90695]
[1617836564716,2.90695,2006.1,2006.0,2.90695]
[1617836566719,34.90695,2006.1,2005.2,71.0391]
[1617836566918,7.95575,2006.1,2005.2,71.0391]
[1617836567921,62.324,2005.3,2005.2,71.0391]
[1617836568919,65.23095,2005.3,2005.2,71.0391]
[1617836569320,62.324,2005.3,2005.2,71.0391]
[1617836571725,2.90695,2005.4,2005.1,2.90695]
[1617836571929,2.351,2006.7,2005.1,2.90695]
[1617836572126,78.8266,2006.2,2005.6,57.0474]
[1617836572332,81.3976,2006.2,2005.6,59.543]
[1617836572926,81.3976,2006.2,2005.9,2.90695]
[1617836574529,4.9321,2006.2,2004.2,32.0]
[1617836574733,4.9321,2006.2,2004.2,30.0]
[1617836574934,4.9321,2006.2,2005.3,2.90695]
[1617836574935,59.861,2005.4,2005.3,2.90695]
[1617836576335,3.1067,2005.4,2005.3,2.90695]
[1617836577238,3.1067,2005.4,2005.3,68.68315]
[1617836580243,2.90695,2005.5,2005.3,68.68315]
[1617836580640,70.2204,2006.0,2005.3,71.57985]
[1617836580940,2.571,2006.2,2005.9,2.90695]
[1617836581147,2.571,2006.2,2005.9,5.51355]
[1617836582951,2.90695,2006.0,2005.9,5.51355]
[1617836585253,2.90695,2006.0,2005.9,2.90695]
[1617836587861,2.571,2006.2,2005.9,2.90695]
[1617836588056,57.5958,2006.3,2005.9,5.93245]
[1617836588258,7.669,2006.7,2005.9,5.93245]
[1617836588458,7.669,2006.7,2006.6,79.1443]
[1617836588658,2.571,2006.7,2006.6,81.7526]
[1617836589159,5.47795,2006.7,2006.6,84.65955]
[1617836591061,2.571,2006.7,2006.6,81.7526]
[1617836591562,5.47795,2006.7,2006.6,84.65955]
[1617836593764,5.47795,2006.7,2006.6,79.1443]
[1617836598675,2.90695,2006.7,2006.5,2.90695]
[1617836600478,73.3069,2006.6,2006.5,2.90695]
[1617836605584,2.90695,2006.7,2006.5,2.90695]
[1617836605784,2.571,2007.3,2006.5,5.11235]
[1617836606484,2.571,2007.3,2006.6,6.25]
[1617836606886,2.571,2007.3,2006.7,2.0]
[1617836607487,2.571,2007.3,2006.8,6.26]
[1617836607687,2.571,2007.3,2007.2,2.90695]
[1617836607887,2.571,2007.3,2007.2,66.48265]
[1617836609789,2.571,2007.3,2007.2,5.39785]
[1617836609989,2.571,2007.3,2007.2,2.90695]
[1617836610690,72.0244,2007.3,2007.2,2.90695]
[1617836612797,69.4534,2007.3,2007.2,2.90695]
[1617836643329,2.571,2007.8,2007.2,8.96695]
[1617836643731,2.571,2007.8,2007.5,77.3357]
[1617836643931,2.571,2007.8,2007.5,79.5768]
[1617836644131,2.571,2007.8,2007.7,2.90695]
[1617836650638,82.6447,2008.4,2007.7,2.90695]
[1617836651242,82.6447,2008.4,2007.8,6.05]
[1617836652243,80.0737,2008.4,2008.3,4.89425]
[1617836655444,80.0737,2008.4,2008.3,10.99425]
[1617836656645,80.0737,2008.4,2008.3,8.0873]
[1617836658446,80.0737,2008.4,2008.3,10.99425]
[1617836661251,5.47795,2008.9,2008.3,10.99425]
[1617836661454,7.669,2010.1,2008.9,56.518]
[1617836661752,7.669,2010.1,2009.0,2.0]
[1617836661962,2.571,2010.1,2009.0,8.09]
[1617836662353,2.571,2010.1,2009.7,5.51065]
[1617836663656,104.6167,2011.0,2009.7,5.51065]
[1617836663854,104.6167,2011.0,2010.1,81.1368]
[1617836664456,5.47795,2010.2,2010.1,84.04375]
[1617836666757,5.47795,2010.2,2010.1,2.90695]
[1617836673369,2.90695,2010.2,2010.1,2.90695]
[1617836685188,32.571,2011.0,2010.2,83.0516]
[1617836685788,32.571,2011.0,2009.9,2.3877]
[1617836685988,34.571,2011.0,2009.9,2.3877]
[1617836686189,63.343,2009.9,2009.0,72.1841]
[1617836686392,1.9225,2009.9,2008.4,43.293]
[1617836686597,63.343,2008.9,2008.5,70.1841]
[1617836686792,3.0684,2008.9,2008.4,30.0]
[1617836686995,66.159,2008.7,2008.3,69.0461]
[1617836687192,66.159,2008.7,2008.6,6.06]
[1617836687393,66.159,2008.7,2008.4,3.89]
[1617836687802,3.0684,2008.9,2008.6,5.36]
[1617836687995,81.1545,2008.7,2008.2,73.8007]
[1617836688201,3.0684,2008.9,2007.9,2.0]
[1617836688494,84.2149,2008.9,2008.2,71.7936]
[1617836688795,84.2149,2008.9,2008.8,2.90695]
[1617836689794,3.0684,2008.9,2008.8,2.90695]
[1617836692200,2.90695,2009.3,2008.8,2.90695]
[1617836692698,2.90695,2009.3,2009.2,2.90695]
[1617836693799,60.12295,2009.3,2009.2,2.90695]
[1617836695501,57.216,2009.3,2009.2,2.90695]
[1617836699905,7.40045,2009.9,2009.2,2.90695]
[1617836700206,79.8083,2009.8,2009.5,59.9464]
[1617836700905,79.8083,2009.8,2009.7,2.90695]
[1617836701805,4.4935,2009.9,2009.7,2.90695]
[1617836702707,2.90695,2009.8,2009.7,2.90695]
[1617836703909,2.90695,2009.8,2009.7,75.11635]
[1617836710213,2.90695,2009.8,2009.7,2.90695]
[1617836715626,64.7498,2010.4,2009.7,2.90695]
[1617836716923,64.7498,2010.4,2010.3,5.00045]
[1617836718826,67.65675,2010.4,2010.3,5.00045]
[1617836720631,67.65675,2010.4,2010.3,2.90695]
[1617836720833,2.90695,2010.4,2010.3,2.90695]
[1617836721029,63.28,2010.3,2009.1,69.8147]
[1617836721229,4.98475,2010.4,2008.3,43.4533]
[1617836721429,65.7665,2009.3,2008.8,57.3432]
[1617836721728,68.0233,2009.3,2008.8,57.3432]
[1617836722829,68.0233,2009.3,2009.2,2.90695]
[1617836723930,2.90695,2009.6,2009.2,2.90695]
[1617836724230,2.90695,2009.6,2009.2,84.40325]
[1617836724831,2.90695,2009.6,2009.5,2.90695]
[1617836725030,82.6835,2009.8,2009.5,2.90695]
[1617836726936,85.59045,2009.8,2009.5,2.90695]
[1617836727540,85.59045,2009.8,2009.5,4.83075]
[1617836727739,2.571,2010.3,2009.5,4.83075]
[1617836728138,2.571,2010.3,2010.2,71.0471]
[1617836728939,5.47795,2010.3,2010.2,73.95405]
[1617836731540,5.47795,2010.3,2010.2,4.96275]
[1617836731743,5.47795,2010.3,2010.2,2.90695]
[1617836732041,73.115,2010.2,2009.4,77.5355]
[1617836732844,73.115,2010.2,2009.5,2.90695]
[1617836734944,4.91495,2009.6,2009.5,2.90695]
[1617836739551,4.91495,2009.6,2008.7,65.419]
[1617836739752,66.8006,2009.0,2008.7,65.419]
[1617836741055,66.8006,2009.0,2008.9,2.90695]
[1617836747368,2.90695,2009.3,2009.0,65.8845]
[1617836747770,2.90695,2009.3,2009.0,66.8906]
[1617836747969,2.90695,2009.3,2009.0,67.7664]
[1617836749171,2.90695,2009.3,2009.2,2.90695]
[1617836749372,2.89945838,2009.3,2009.2,2.90695]
[1617836754177,64.6071,2009.9,2009.2,2.90695]
[1617836754380,2.571,2009.9,2009.2,2.90695]
[1617836754577,2.571,2009.9,2009.7,65.6622]
[1617836755079,2.571,2009.9,2009.8,2.90695]
[1617836763588,2.90695,2010.0,2009.8,2.90695]
[1617836766694,2.90695,2010.0,2009.1,72.3226]
[1617836766897,37.02445,2010.0,2009.1,72.3226]
[1617836767099,34.1175,2010.0,2009.4,2.90695]
[1617836767595,34.17639374,2010.0,2009.4,2.90695]
[1617836767802,0.0588999,2009.8,2009.4,2.90695]
[1617836768398,0.05889983,2009.9,2009.4,2.90695]
[1617836768901,0.05889983,2009.9,2009.1,72.3226]
[1617836769198,5.93355,2009.3,2009.1,75.22955]
[1617836774005,69.59175,2009.3,2009.1,75.22955]
[1617836774305,69.59175,2009.3,2009.1,2.90695]
[1617836774306,5.93355,2009.3,2009.1,2.90695]
[1617836776806,62.8723,2009.2,2009.1,2.90695]
[1617836786117,62.8723,2009.2,2008.9,58.7745]
[1617836787517,2.90695,2009.0,2008.9,61.68145]
[1617836789620,2.90695,2009.0,2008.9,2.90695]
[1617836802239,82.54055,2009.0,2008.9,2.90695]
[1617836803238,79.6336,2009.0,2008.2,65.7751]
[1617836804542,79.6336,2009.0,2008.9,2.90695]
[1617836806544,82.54055,2009.0,2008.9,2.90695]
[1617836810456,2.90695,2009.0,2008.9,2.90695]
[1617836819872,2.90695,2009.0,2008.9,5.49975]
[1617836821077,2.90695,2009.0,2008.9,2.90695]
[1617836821278,66.2991,2009.2,2008.3,57.7279]
[1617836822779,66.2991,2009.2,2008.9,2.90695]
[1617836824581,67.2886,2009.2,2008.9,2.90695]
[1617836824785,2.90695,2009.0,2008.9,3.88985]
[1617836824985,0.9895,2009.2,2008.9,3.88985]
[1617836825583,2.571,2009.8,2009.2,75.2282]
[1617836825784,2.571,2009.8,2009.2,77.5523]
[1617836826786,2.571,2009.8,2009.6,2.90695]
[1617836828891,5.47795,2009.8,2009.6,2.90695]
[1617836832291,2.90695,2009.8,2009.6,2.90695]
[1617836841104,2.90695,2009.8,2008.8,70.1182]
[1617836841304,83.3664,2009.4,2008.3,2.0]
[1617836841501,2.2209,2009.4,2008.0,2.0]
[1617836842101,97.3468,2009.0,2008.0,2.0]
[1617836842402,4.7919,2009.4,2008.0,2.0]
[1617836842800,4.7919,2009.4,2008.9,2.90695]
[1617836843002,63.553,2008.9,2008.0,2.0]
[1617836843204,65.8631,2008.9,2008.0,2.0]
[1617836844507,65.8631,2008.9,2007.6,2.0]
[1617836844908,2.3101,2008.9,2008.8,2.90695]
[1617836845714,4.7919,2009.4,2008.8,2.90695]
[1617836845912,78.1014,2009.2,2008.8,2.90695]
[1617836846915,2.90695,2008.9,2008.8,2.90695]
[1617836859228,2.90695,2008.9,2008.8,65.36585]
[1617836863936,2.90695,2008.9,2008.8,67.91035]
[1617836867441,2.90695,2008.9,2008.8,5.45145]
[1617836871547,2.90695,2008.9,2008.8,2.90695]
[1617836872748,3.90585,2008.9,2008.8,3.90765]
[1617836873248,2.90695,2008.9,2008.8,2.90695]
[1617836881567,2.90695,2008.9,2007.3,5.25961072]
[1617836881765,69.9669,2007.5,2007.3,5.25961072]
[1617836881967,69.9669,2007.5,2007.1,8.42841311]
[1617836881968,69.9669,2007.5,2007.1,7.26294071]
[1617836882165,2.4002,2007.5,2007.1,5.26294071]
[1617836882367,2.4002,2007.5,2007.0,30.0]
[1617836882766,2.4002,2007.5,2007.2,6.08]
[1617836883067,2.4002,2007.5,2007.4,2.90695]
[1617836883669,83.2652,2007.6,2007.4,2.90695]
[1617836883971,2.90695,2008.0,2007.4,2.90695]
[1617836884167,76.60175,2008.0,2007.4,2.90695]
[1617836884369,73.6948,2008.0,2007.4,2.90695]
[1617836885171,73.6948,2008.0,2007.9,2.90695]
[1617836885772,2.90695,2008.3,2007.9,2.90695]
[1617836885974,64.44195,2008.3,2007.9,2.90695]
[1617836887074,64.44195,2008.3,2008.2,2.90695]
[1617836890080,2.90695,2008.3,2008.2,2.90695]
[1617836893786,73.85105,2008.3,2008.2,2.90695]
[1617836896493,2.90695,2008.3,2008.2,2.90695]
[1617836896692,4.91025,2008.3,2008.2,2.90695]
[1617836897599,4.91025,2008.3,2007.0,62.8401]
[1617836898293,59.9185,2007.2,2007.0,62.8401]
[1617836899194,59.9185,2007.2,2007.1,2.90695]
[1617836907506,58.9185,2007.2,2007.1,2.90695]
[1617836910810,58.9185,2007.2,2007.1,9.08695]
[1617836911811,58.9185,2007.2,2007.1,2.90695]
[1617836922129,58.9185,2007.2,2007.0,62.8401]
[1617836923731,58.9185,2007.2,2007.1,2.90695]
[1617836929235,58.9185,2007.2,2007.1,3.89455]
[1617836929636,58.9185,2007.2,2007.1,9.90455]
[1617836930037,58.9185,2007.2,2007.1,2.90695]
[1617836936145,58.9185,2007.2,2007.1,5.55565]
[1617836938048,2.90695,2008.0,2007.1,5.55565]
[1617836939448,2.90695,2008.0,2007.6,59.2411]
[1617836939648,2.90695,2008.0,2007.6,61.743]
[1617836939848,2.90695,2008.0,2007.9,2.90695]
[1617836940049,2.0,2008.9,2007.9,3.90025]
[1617836940248,0.93809897,2010.0,2007.9,3.90025]
[1617836940451,0.05863119,2009.3,2008.7,57.038]
[1617836940749,69.70534149,2009.4,2008.7,59.3075]
[1617836940950,69.6467,2009.4,2008.7,59.3075]
[1617836941349,2.571,2009.4,2008.7,2.2695]
[1617836941751,81.51825,2008.8,2008.7,5.17645]
[1617836941950,2.90695,2008.8,2008.7,5.17645]
[1617836944751,2.571,2009.4,2008.8,67.4889]
[1617836945151,2.571,2009.4,2008.7,5.17645]
[1617836945452,60.6405,2008.9,2008.7,5.17645]
[1617836952161,60.6405,2008.9,2008.7,2.90695]
[1617836957474,2.90695,2009.0,2008.7,2.90695]
[1617836959678,57.3861,2008.8,2008.7,2.90695]
[1617836968586,2.90695,2009.0,2008.7,2.90695]
[1617836968786,2.62980896,2009.4,2009.0,60.36]
[1617836968986,2.62980896,2009.4,2008.7,35.11395]
[1617836969187,2.571,2009.4,2008.7,35.11395]
[1617836969589,2.571,2009.4,2008.8,2.0]
[1617836969794,2.571,2009.4,2008.9,30.0]
[1617836969989,0.05880504,2009.6,2009.3,2.90695]
[1617836970188,0.05880504,2009.6,2009.3,5.03735]
[1617836970389,2.571,2010.1,2009.4,36.18]
[1617836970989,2.571,2010.1,2009.5,2.0]
[1617836971192,0.05885982,2010.4,2010.3,68.5228]
[1617836971391,0.05885982,2010.4,2010.3,70.8288]
[1617836971591,68.0461,2010.6,2010.3,70.8288]
[1617836971991,68.0461,2010.6,2010.5,2.90695]
[1617836972192,2.571,2010.6,2010.5,2.90695]
[1617836973293,70.7536,2010.6,2010.5,2.90695]
[1617836974895,2.571,2010.6,2010.5,2.90695]
[1617836977797,84.781,2011.3,2009.5,30.0]
[1617836977997,84.781,2011.3,2011.0,74.9279]
[1617836978497,2.90695,2011.1,2011.0,74.9279]
[1617836978899,2.90695,2011.1,2010.9,2.90695]
[1617836979499,2.571,2011.3,2010.5,69.8315]
[1617836979702,72.648,2010.7,2010.5,69.8315]
[1617836980501,72.648,2010.7,2010.6,2.90695]
[1617836982503,2.571,2011.3,2010.6,2.90695]
[1617836982805,2.571,2011.3,2010.7,63.9843]
[1617836983002,2.571,2011.3,2010.6,32.90695]
[1617836983202,2.571,2011.3,2010.7,6.07]
[1617836983404,2.571,2011.3,2010.7,36.07]
[1617836983904,7.669,2011.9,2010.7,36.07]
[1617836984103,7.669,2011.9,2011.4,75.3795]
[1617836984303,7.669,2011.9,2011.4,77.2568]
[1617836984603,7.669,2011.9,2011.6,2.90695]
[1617836985806,7.669,2011.9,2010.1,12.8942]
[1617836986006,40.5039,2011.9,2009.4,2.0]
[1617836986209,10.5039,2011.9,2009.4,2.0]
[1617836986406,76.3928,2010.3,2009.9,58.7713]
[1617836986607,76.3928,2010.3,2010.2,2.90695]
[1617836989613,2.571,2011.4,2010.2,32.90695]
[1617836989913,83.0189,2011.2,2010.7,66.9823]
[1617836990112,2.571,2011.4,2010.7,2.1401]
[1617836990413,2.571,2011.4,2011.2,70.1782]
[1617836990716,5.47795,2011.4,2011.3,2.90695]
[1617836992616,5.47795,2011.4,2011.3,5.29775]
[1617836994116,2.90695,2011.4,2011.3,5.29775]
[1617836994815,2.90695,2011.4,2011.3,2.90695]
[1617836995016,2.90695,2011.4,2010.4,66.6466]
[1617836995316,82.3573,2011.3,2010.4,66.6466]
[1617836996317,2.0,2011.2,2010.4,66.6466]
[1617836996718,2.0,2011.2,2010.5,2.90695]
[1617836998321,2.0,2011.2,2010.5,4.87305]
[1617836998721,2.90695,2010.6,2010.5,2.90695]
[1617836999023,5.25125,2010.6,2010.5,2.90695]
[1617836999726,5.25125,2010.6,2009.2,12.6409]
[1617837000127,68.9458,2009.6,2009.1,66.4043]
[1617837000327,2.3926,2009.8,2008.7,0.9987]
[1617837000627,2.3926,2009.8,2009.3,1.0029]
[1617837000828,2.3926,2009.8,2009.7,2.90695]
[1617837001228,2.3926,2009.8,2009.7,9.17695]
[1617837001428,0.05825548,2012.7,2009.7,39.17695]
[1617837001627,66.1105,2011.7,2010.8,73.3355]
[1617837001931,66.1105,2011.7,2010.8,76.1841]
[1617837002829,66.1105,2011.7,2011.1,2.90695]
[1617837003832,2.0,2012.4,2011.1,2.90695]
[1617837004034,79.6044,2012.0,2011.6,74.6719]
[1617837004231,79.6044,2012.0,2011.6,76.5817]
[1617837004431,12.716,2012.8,2011.6,1.9098]
[1617837004732,2.90695,2011.7,2011.6,4.81675]
[1617837005031,5.47795,2011.7,2011.6,4.81675]
[1617837005631,2.571,2011.7,2011.6,4.81675]
[1617837006338,2.571,2011.7,2011.6,11.05675]
[1617837006835,57.3493,2012.1,2011.6,11.05675]
[1617837008536,57.3493,2012.1,2011.6,41.05675]
[1617837009037,57.3493,2012.1,2012.0,2.90695]
[1617837010938,57.3493,2012.1,2011.6,31.9098]
[1617837011437,57.3493,2012.1,2012.0,2.90695]
[1617837011639,2.2755,2012.2,2012.0,2.86595]
[1617837011940,2.571,2012.1,2012.0,2.86595]
[1617837012736,2.2755,2012.2,2012.0,2.86595]
[1617837014839,64.4561,2012.1,2012.0,2.86595]
[1617837024146,2.90695,2012.3,2012.0,2.86595]
[1617837024446,2.90695,2012.3,2012.0,5.71815]
[1617837025947,2.90695,2012.3,2012.2,77.3903]
[1617837036859,2.90695,2012.3,2012.0,2.86595]
[1617837040963,2.90695,2012.3,2012.2,72.4184]
[1617837046569,2.90695,2012.3,2012.2,69.662]
[1617837049774,4.96455,2012.3,2012.2,69.662]
[1617837051478,2.90695,2012.3,2012.2,69.662]
[1617837055687,2.90695,2012.3,2012.0,2.86595]
[1617837061194,2.0,2012.2,2010.2,43.0313]
[1617837061395,57.8289,2011.6,2010.1,62.8782]
[1617837061592,3.107,2011.6,2009.7,13.1904]
[1617837061836,3.107,2011.6,2008.8,6.31768017]
[1617837061837,57.8375,2010.1,2009.5,61.9049]
[1617837062100,60.5565,2010.1,2009.5,61.9049]
[1617837062307,60.5565,2010.1,2009.6,36.24]
[1617837062995,72.8023,2011.2,2009.6,36.24]
[1617837062996,2.571,2011.2,2009.6,38.24]
[1617837063197,2.571,2011.2,2010.1,3.0111]
[1617837063397,2.571,2011.2,2010.4,67.3455]
[1617837063697,77.2224,2011.5,2010.4,67.3455]
[1617837063899,77.2224,2011.5,2011.3,2.90695]
[1617837065998,77.2224,2011.5,2003.2,12.78545641]
[1617837065999,2.90695,2011.4,2003.2,12.78545641]
[1617837066202,2.90695,2011.4,2008.9,12.7452]
[1617837066501,4.90695,2011.4,2008.9,12.7452]
[1617837066799,78.863,2009.9,2009.4,6.26]
[1617837066997,78.863,2009.9,2009.5,30.0]
[1617837067298,78.863,2009.9,2009.0,2.0]
[1617837067299,2.3663,2009.9,2009.4,6.1]
[1617837067598,2.3663,2009.9,2009.6,6.17]
[1617837067798,75.3498,2009.6,2009.5,2.90695]
[1617837067998,75.3498,2009.6,2009.5,9.07695]
[1617837068198,75.3498,2009.6,2009.5,2.90695]
[1617837068598,75.3498,2009.6,2009.5,9.01695]
[1617837068898,2.3663,2009.9,2009.5,9.01695]
[1617837069100,2.3663,2009.9,2009.6,69.8259]
[1617837069500,2.3663,2009.9,2009.7,6.17]
[1617837069899,2.3663,2009.9,2009.8,2.90695]
[1617837072001,2.90695,2010.1,2009.8,2.90695]
[1617837073403,61.1751,2009.8,2009.1,72.1426]
[1617837073703,2.0,2010.0,2008.2,30.0]
[1617837073904,61.1751,2009.1,2008.2,103.8658]
[1617837074406,61.1751,2009.1,2008.3,6.27]
[1617837074607,61.1751,2009.1,2008.4,30.0]
[1617837075106,61.1751,2009.1,2008.5,6.11]
[1617837075905,61.1751,2009.1,2009.0,2.90695]
[1617837077009,61.1751,2009.1,2009.0,9.07695]
[1617837077208,2.4059,2009.6,2009.0,9.07695]
[1617837077412,2.4059,2009.6,2009.1,57.8711]
[1617837077909,2.90695,2009.6,2009.5,2.90695]
[1617837078310,5.54685,2009.6,2009.5,2.90695]
[1617837080715,2.571,2010.7,2009.5,2.90695]
[1617837080916,2.571,2010.7,2009.6,77.3775]
[1617837081118,2.571,2010.7,2009.6,85.8536]
[1617837081918,2.571,2010.7,2010.6,2.90695]
[1617837082119,2.571,2010.7,2010.6,5.08335]
[1617837082319,2.571,2010.7,2010.6,2.1764]
[1617837083618,67.0326,2010.6,2010.0,71.6664]
[1617837083818,2.571,2010.7,2008.7,30.0]
[1617837084021,2.571,2010.7,2008.8,71.6985]
[1617837084520,2.571,2010.7,2008.9,6.09]
[1617837084821,71.1218,2009.6,2008.9,6.09]
[1617837085017,2.9426,2009.6,2008.2,32.0]
[1617837085617,2.9426,2009.6,2008.3,30.0]
[1617837085817,2.9426,2009.6,2008.3,36.13]
[1617837086018,2.9426,2009.6,2009.5,2.90695]
[1617837087520,2.90695,2010.0,2009.5,2.90695]
[1617837088018,2.90695,2010.0,2009.9,2.90695]
[1617837088218,2.571,2010.7,2009.9,2.90695]
[1617837088819,80.8577,2010.6,2009.9,60.21595]
[1617837089521,80.8577,2010.6,2010.0,6.26]
[1617837089723,80.8577,2010.6,2010.0,8.4694]
[1617837090022,80.8577,2010.6,2010.5,2.90695]
[1617837090224,2.571,2010.7,2010.5,4.99545]
[1617837091321,2.571,2010.7,2010.5,2.90695]
[1617837092124,2.90695,2010.6,2010.5,2.90695]
[1617837099434,57.2775,2010.9,2010.5,2.90695]
[1617837100034,57.2775,2010.9,2010.8,2.90695]
[1617837100336,57.2775,2010.9,2010.4,62.9564]
[1617837100634,57.2775,2010.9,2010.4,60.7637]
[1617837102035,57.2775,2010.9,2010.8,2.90695]
[1617837104141,60.18445,2010.9,2010.8,2.90695]
[1617837104542,2.90695,2010.9,2010.8,2.90695]
[1617837104743,2.571,2011.4,2011.0,62.5873]
[1617837106244,2.571,2011.4,2011.2,2.90695]
[1617837108349,2.90695,2011.3,2011.2,2.90695]
[1617837128682,61.2685,2011.4,2011.2,2.90695]
[1617837128882,61.2685,2011.4,2011.2,5.53345]
[1617837132391,61.2685,2011.4,2011.2,2.90695]
[1617837132592,2.90695,2011.7,2011.2,2.90695]